Cogmind - Beta 11.1 @@@ ROGUE MODE // 2022.05.26 @ 23:54:07 Player: Decinym Result: Destroyed self with Mini Smartbomb Launcher Performance ------------- Evolutions (4) 2000 Regions Visited (15) 3000 Robots Destroyed (171) 855 Value Destroyed (5317) 5317 Prototype IDs (60) 1200 Alien Tech Used (0) 0 Bonus (1882) 1882 TOTAL SCORE: 14254 Bonus ------- High Alert Combat Kills 450 Follower Combat Kills 833 Aligned with FarCom 300 Met Imprinter 300 Was Imprinted 300 Friendly Fire -301 Cogmind --------- Core Integrity 0/850 Matter 107/300 Energy 59/100 System Corruption 3% Temperature Cool (6) Movement Core (100) Ox1 Location -6/Factory Parts ------- > --- POWER (1) -------- (None) > --- PROPULSION (4) --- Backup Propulsion I > --- UTILITY (8) ------ Enhanced Optical Array Advanced Sensor Array Advanced Signal Interpreter Improved Targeting Computer Improved Targeting Computer Graphene Brace Experimental Hacking Suite > --- WEAPON (2) ------- Mini Smartbomb Launcher > --- INVENTORY (5) ---- Advanced Visual Processing Unit Hypervelocity Mass Driver Plasma Cutter GAL Module Peak State ------------ > --- POWER ------------ Enhanced Nuclear Core > --- PROPULSION ------- Armored Treads Armored Treads Armored Medium Treads Armored Medium Treads > --- UTILITY ---------- Improved Heat Sink High-capacity Storage Unit Enhanced Optical Array Experimental Terrain Scan Processor Experimental Targeting Computer Experimental Target Analyzer Improved Armor Integrity Analyzer Advanced Transmission Jammer > --- WEAPON ----------- Cooled Pulse Rifle Cooled Particle Cannon > --- INVENTORY -------- Reinforced Fission Core Armored Treads Medium Treads Zionite Biocell Advanced Sensor Array Advanced Signal Interpreter Advanced Terrain Scanner Experimental Terrain Scan Processor Experimental Core Analyzer Improved Light Armor Plating Experimental Hacking Suite System Purifier Hacking Drone Bay Cooled Pulse Rifle Cooled Pulse Rifle Advanced EMP Blaster Rocket Launcher Plasma Cutter CR-A16's Pointy Stick GAL Module [Rating: 90] Favorites ----------- Power Enhanced Nuclear Core Engine Heavy Ion Engine Power Core Enhanced Nuclear Core Propulsion Armored Treads Treads Armored Treads Leg Makeshift Leg Wheel Wheel Hover Unit Backup Propulsion I Utility Large Storage Unit Device Improved Terrain Scanner Storage Large Storage Unit Processor Experimental Targeting Computer Hackware Experimental Hacking Suite Protection Improved Light Armor Plating Weapon Cooled Particle Cannon Energy Gun Heavy Beamcaster Energy Cannon Cooled Particle Cannon Ballistic Gun Light Assault Rifle Ballistic Cannon Mini Assault Cannon Launcher Rocket Launcher Impact Weapon Impact Mace Piercing Weapon CR-A16's Pointy Stick Special Melee Weapon Improved Datajack Build | -11 -10 -10 -9 -9 -9 -8 -8 -7 -7 -7 -7 -6 -6 -6 -6 ------- Run | Scr Mat Min Mat Min Exi Min Mat Fac Low Low Zio Pro Fac Was Fac Slots Evolved 8 | . . . 2 . . . 2 2 . . . . 2 . . Power . | . . . . . . . . . . . . . . . . Propulsion 2 | . . . 1 . . . . . . . . . 1 . . Utility 6 | . . . 1 . . . 2 2 . . . . 1 . . Weapon . | . . . . . . . . . . . . . . . . Parts Attached 169 | . 4 10 11 . 27 3 18 23 2 5 9 7 44 1 5 Power 8 | . . 1 1 . 2 . . 2 . . . . 2 . . Engine 5 | . . 1 1 . 2 . . 1 . . . . . . . Core 3 | . . . . . . . . 1 . . . . 2 . . Reactor . | . . . . . . . . . . . . . . . . Propulsion 36 | . . 2 3 . 7 . 6 1 . 2 . 2 12 . 1 Treads 27 | . . . 3 . 4 . 3 1 . 2 . 2 11 . 1 Leg 8 | . . 2 . . 3 . 3 . . . . . . . . Wheel 1 | . . . . . . . . . . . . . 1 . . Hover . | . . . . . . . . . . . . . . . . Flight . | . . . . . . . . . . . . . . . . Utility 47 | . 2 . 1 . 4 . 9 4 2 . 4 1 17 . 3 Device 12 | . . . 1 . 1 . 1 1 . . . . 8 . . Storage 4 | . 1 . . . . . 1 . . . . 1 1 . . Processor 15 | . 1 . . . 1 . 2 . 1 . 3 . 4 . 3 Hackware 1 | . . . . . . . . . . . . . 1 . . Protection 15 | . . . . . 2 . 5 3 1 . 1 . 3 . . Artifact . | . . . . . . . . . . . . . . . . Weapon 78 | . 2 7 6 . 14 3 3 16 . 3 5 4 13 1 1 Energy Gun 18 | . 2 3 2 . 1 2 . 1 . . 1 . 6 . . Energy Cannon 14 | . . . . . 2 . 2 4 . . 2 2 2 . . Ballistic Gun 20 | . . 1 1 . 9 1 . 5 . 1 . . 2 . . Ballistic Cannon 4 | . . . . . . . . 2 . 1 . . 1 . . Launcher 19 | . . 3 3 . 1 . 1 3 . 1 2 2 1 1 1 Special Weapon . | . . . . . . . . . . . . . . . . Impact Weapon 1 | . . . . . . . . 1 . . . . . . . Slashing Weapon . | . . . . . . . . . . . . . . . . Piercing Weapon 1 | . . . . . . . . . . . . . 1 . . Special Melee Weapon 1 | . . . . . 1 . . . . . . . . . . Unidentified Prototypes 16 | . . . 2 . . . . 6 . . 4 . 3 1 . Corrupted Parts 1 | . . . . . . . . . . . . 1 . . . System Corruption 1 | . . . . . . . . . . . . 1 . . . Parts Lost 48 | . . 3 . . 16 1 3 . 2 . 1 . 20 . 2 Power 5 | . . 1 . . 1 . . . . . . . 2 . 1 Propulsion 17 | . . 1 . . 7 . 2 . . . . . 7 . . Utility 11 | . . . . . 3 . 1 . 2 . 1 . 4 . . Weapon 15 | . . 1 . . 5 1 . . . . . . 7 . 1 Highest Loss Streak 20 | . . 1 . . 10 1 3 . 2 . 1 . 20 . 2 To Critical Strikes 11 | . . . . . 10 . . . . . . . 1 . . Average Slot Usage (%) 95 | . 95 97 94 100 91 100 95 99 99 100 96 100 89 26 64 Engine 5 | . 14 13 11 11 10 11 9 2 . . . . . . 3 Core 3 | . . . . . . . . 4 7 7 7 7 5 . . Treads 20 | . . . 33 33 25 . 12 23 23 23 23 23 23 . 5 Leg 5 | . 28 28 . . 5 33 13 . . . . . . . . Device 7 | . . . 6 11 7 . 6 15 9 7 7 7 7 13 13 Storage 8 | . 14 14 11 11 11 11 9 7 7 7 7 7 5 . . Processor 18 | . 9 14 11 11 9 11 17 15 19 23 24 30 29 6 18 Protection 7 | . . . . . 1 11 9 15 15 15 12 7 2 . . Energy Gun 6 | . 9 18 14 11 4 21 6 . . . 5 7 8 . 9 Energy Cannon 2 | . . . . . . . 10 7 7 2 . 6 2 . . Ballistic Gun 3 | . 19 3 6 11 11 . . 4 . 4 . . . . . Ballistic Cannon 1 | . . . . . . . . 2 7 6 . . . . . Launcher 1 | . . 4 1 . . . . . . . 5 . . . . Naked Turns 15 | . . . . . . . . . . . . . 15 . . Heaviest Build 81 | 11 28 29 39 34 46 41 45 56 53 46 61 81 81 2 5 Greatest Support 102 | 20 20 25 60 60 70 70 70 60 60 63 63 70 102 3 6 Greatest Overweight (x) 20 | . 1 1 . . 1 . 1 . . . . 1 20 . . Average Overweight (x) . | . . 1 . . . . . . . . . . . . . Largest Inventory Capacity 20 | 8 15 15 15 15 15 15 15 15 15 15 15 20 20 5 5 Average Capacity 15 | 8 14 15 15 15 15 15 15 15 15 15 15 19 19 5 5 Most Carried 20 | 5 10 15 15 15 15 14 15 15 15 15 15 20 20 5 5 Average Carried 14 | 4 8 12 13 14 13 13 14 14 14 14 13 19 18 4 4 Final Capacity 20 | 8 15 15 15 15 15 15 15 15 15 15 15 20 5 5 5 Final Carried 20 | 4 10 15 15 15 14 14 15 15 15 15 15 20 4 5 4 Class Distribution -------------------- 55% | Scavenger-Mutant 40% | Mutant 4% | Scavenger-Skirmisher Dominant Class ---------------- Mutant | -10/Materials Mutant | -10/Mines Mutant | -9/Materials Mutant | -9/Mines Mutant | -9/Exiles Scavenger-Mutant | -8/Mines Scavenger-Mutant | -8/Materials Scavenger-Mutant | -7/Factory Scavenger-Mutant | -7/Lower Caves Scavenger-Mutant | -7/Lower Caves Scavenger-Mutant | -7/Zion Mutant | -6/Proximity Caves Scavenger-Mutant | -6/Factory Mutant | -6/Waste Mutant | -6/Factory Resources | -11 -10 -10 -9 -9 -9 -8 -8 -7 -7 -7 -7 -6 -6 -6 -6 ----------- Run | Scr Mat Min Mat Min Exi Min Mat Fac Low Low Zio Pro Fac Was Fac Matter Collected 3504 | 200 88 164 246 4 795 55 219 579 175 225 43 250 306 . 155 Remotely . | . . . . . . . . . . . . . . . . Salvage Created 6323 | . 153 312 835 8 418 202 477 1142 234 125 . 608 1643 . 166 Parts 352 | . 8 18 41 1 75 10 34 55 6 8 . 18 70 . 8 Haulers Intercepted 13 | . . . 4 . . . 2 5 . . . . 2 . . Recyclers Shooed 5 | . . . 2 . . . . . . . . . 1 . 2 Parts Field Recycled . | . . . . . . . . . . . . . . . . Retrieved Matter . | . . . . . . . . . . . . . . . . Parts Self-Destructed 33 | . . . . . . . . . 6 5 . 22 . . . Prevented 1 | . . . . . . . . . . . . 1 . . . Kills | -11 -10 -10 -9 -9 -9 -8 -8 -7 -7 -7 -7 -6 -6 -6 -6 ------- Run | Scr Mat Min Mat Min Exi Min Mat Fac Low Low Zio Pro Fac Was Fac Combat Hostiles Destroyed 113 | . 3 11 10 . 3 7 10 20 5 6 . 10 27 . 1 Guns 43 | . 3 6 4 . 1 7 3 4 . . . 2 13 . . Cannons 28 | . . . . . 1 . 5 8 5 1 . 3 5 . . AOE 36 | . . 5 5 . 1 . 2 8 . 5 . 5 4 . 1 Classes Destroyed 20 | . 2 2 6 1 3 . 1 2 2 . . . 1 . . Worker 10 | . 1 . 1 . . 1 1 4 . . . . 1 . 1 Builder 11 | . . . 3 . . . 2 2 . . . . 3 . 1 Tunneler 3 | . . . . 1 . . . 1 . . . . 1 . . Hauler 13 | . . . 4 . . . 2 5 . . . . 2 . . Recycler 6 | . . . 4 . . . 1 . . . . . . . 1 Minesweeper 1 | . . . . . . . . . 1 . . . . . . Operator 1 | . . . 1 . . . . . . . . . . . . Turret 1 | . . . . . 1 . . . . . . . . . . Watcher 4 | . . . 2 . . . . 1 . . . . 1 . . Swarmer 22 | . . 5 4 . . 4 3 3 . 3 . . . . . Grunt 49 | . 3 4 3 . . 2 1 12 4 2 . 8 10 . . Brawler 4 | . . . 1 . . 1 . 1 . . . 1 . . . Sentry 12 | . . 2 2 . . . 4 2 . . . . 2 . . Specialist 7 | . . . . . . . 2 . . . . . 5 . . Hunter 6 | . . . . . . . . 1 . . . . 5 . . Programmer 6 | . . . . . . . . 1 . 1 . . 3 . 1 Heavy 2 | . . . . . . . . . . . . . 2 . . Behemoth 2 | . . . . . . . . . 1 . . 1 . . . Zionite 7 | . . . . . 7 . . . . . . . . . . Assembled 2 | . . . . . 2 . . . . . . . . . . Savage 1 | . . . . . . . . . . . . 1 . . . Best Kill Streak 14 | . 3 3 14 1 4 5 5 7 2 5 . 4 11 . 2 Combat Bots Only 5 | . 2 3 3 . 2 4 4 3 2 5 . 4 4 . 1 Max Kills in Single Turn 5 | . 1 3 3 1 2 2 2 5 1 2 . 2 4 . 1 Gunslinging 1 | . . . . . . 1 . . . . . . . . . Exploded 3 | . . 3 1 . 1 . 2 3 . 2 . 2 3 . 1 Melee . | . . . . . . . . . . . . . . . . Uniques/NPCs Destroyed 4 | . . . . . 4 . . . . . . . . . . 8R-AWN (-9/Exiles) EX-DEC (-9/Exiles) EX-HEX (-9/Exiles) EX-BIN (-9/Exiles) Combat | -11 -10 -10 -9 -9 -9 -8 -8 -7 -7 -7 -7 -6 -6 -6 -6 -------- Run | Scr Mat Min Mat Min Exi Min Mat Fac Low Low Zio Pro Fac Was Fac Damage Taken 12052 | . 192 710 164 . 1698 154 1051 538 638 309 . 481 6003 . 114 Core 1496 | . 52 124 6 . 185 16 144 28 29 . . 54 831 . 27 Absorbed by Shields 218 | . . . 59 . 159 . . . . . . . . . . Regen/Repaired (Parts) 803 | . . . . . . . . . . . 803 . . . . Core Remaining (%) 66 | 100 . 29 . . . 48 73 . . . . 84 . . . Volleys Fired 483 | . 17 33 32 3 101 11 32 62 26 18 . 20 110 . 18 Largest 2 | . 2 2 2 2 2 2 2 2 2 2 . 2 2 . 2 Hottest 160 | . 115 100 115 85 100 130 160 160 138 76 . 111 120 . 80 Shots Fired 835 | . 34 55 51 6 169 22 60 112 52 24 . 29 187 . 34 Gun 573 | . 34 50 38 6 164 22 26 43 . 6 . 9 143 . 32 Cannon 210 | . . . . . 4 . 30 62 52 9 . 13 40 . . Launcher 52 | . . 5 13 . 1 . 4 7 . 9 . 7 4 . 2 Special . | . . . . . . . . . . . . . . . . Kinetic 350 | . 27 11 13 3 164 3 . 56 26 15 . . 32 . . Thermal 429 | . 7 39 25 3 4 19 56 49 26 . . 22 147 . 32 Explosive 43 | . . 5 7 . 1 . 4 4 . 9 . 7 4 . 2 Electromagnetic 13 | . . . 6 . . . . 3 . . . . 4 . . Robot Hit Streak 50 | . 14 8 10 6 50 14 23 28 26 3 . 9 28 . 18 Robot Miss Streak 4 | . 4 2 2 2 2 3 2 3 2 4 . 1 3 . 2 Penetration Max 1 | . . . . . 1 1 . . . . . . 1 . . Secondary Targets 9 | . . 1 . . . 3 . 1 . . . . 4 . . Max Gunslinging Chain 1 | . . 1 . . . 1 . 1 . . . . 1 . . Shots Hit Robots 646 | . 23 39 34 6 147 19 42 84 42 10 . 18 156 . 26 Core Hits 363 | . 9 17 38 3 39 20 36 56 9 14 . 25 82 . 15 Critical Kills 6 | . . . 1 . 4 1 . . . . . . . . . Critical Parts Destroyed 12 | . . . . . 8 1 . . . . . . 3 . . Critical Strikes 38 | . 1 1 2 . 12 2 . . 2 . . 1 17 . . Burn 17 | . 1 1 1 . . . . . . . . 1 13 . . Destroy 18 | . . . 1 . 12 2 . . . . . . 3 . . Blast 3 | . . . . . . . . . 2 . . . 1 . . Melee Attacks 6 | . . . . . 5 . . . . . . . 1 . . Impact . | . . . . . . . . . . . . . . . . Slashing . | . . . . . . . . . . . . . . . . Piercing 1 | . . . . . . . . . . . . . 1 . . Sneak Attacks 4 | . . . . . 4 . . . . . . . . . . Combat Hostiles . | . . . . . . . . . . . . . . . . Follow-up Attacks . | . . . . . . . . . . . . . . . . Damage Inflicted 18060 | . 256 746 1402 66 1966 370 1148 3447 1459 722 . 1229 4864 . 385 Guns 7172 | . 256 453 325 66 1589 370 378 746 . 47 . 207 2518 . 217 Cannons 4450 | . . . . . 118 . 446 1198 1459 118 . 192 919 . . Explosions 6419 | . . 293 1077 . 243 . 324 1503 . 557 . 830 1424 . 168 Melee . | . . . . . . . . . . . . . . . . Ramming 19 | . . . . . 16 . . . . . . . 3 . . Kinetic 4441 | . 166 88 76 25 1589 100 . 982 536 165 . . 714 . . Thermal 8424 | . 90 365 249 41 302 270 824 1791 923 . . 399 2953 . 217 Explosive 4692 | . . 293 846 . 59 . 324 477 . 557 . 830 1138 . 168 Electromagnetic 484 | . . . 231 . . . . 197 . . . . 56 . . Impact . | . . . . . . . . . . . . . . . . Slashing . | . . . . . . . . . . . . . . . . Piercing . | . . . . . . . . . . . . . . . . Highest Corruption 8 | . 1 1 . . 4 8 . 5 5 5 5 1 2 2 3 Average Corruption 3 | . 1 1 . . 3 4 . 4 5 5 5 1 1 2 2 Corruption Purged . | . . . . . . . . . . . . . . . . Corruption Blocked . | . . . . . . . . . . . . . . . . Effects 97 | . 2 7 . . 7 5 . 27 19 19 2 . 5 1 3 Message Errors 30 | . . 2 . . 2 1 . 13 6 4 . . 1 . 1 Matter Fused 19 | . 1 2 . . 2 3 . 1 3 6 . . . . 1 Heat Flow Errors 14 | . . 2 . . . . . 1 4 4 1 . 2 . . Energy Discharges 9 | . . . . . 1 . . 2 2 2 . . 1 . 1 Parts Rejected 2 | . . . . . . . . 1 . . . . 1 . . Data Loss (minor) 7 | . 1 1 . . . . . 2 . 1 1 . . 1 . Data Loss (major) 9 | . . . . . 2 1 . 2 2 2 . . . . . Misfires 4 | . . . . . . . . 3 1 . . . . . . Alerts 1 | . . . . . . . . 1 . . . . . . . Weapon Failures 2 | . . . . . . . . 1 1 . . . . . . Overload Shots 19 | . . . . . . . . . 12 . . 2 5 . . Effects 1 | . . . . . . . . . 1 . . . . . . Energy Bleed 1 | . . . . . . . . . 1 . . . . . . Overflow Damage 316 | . . 60 31 . . . 28 98 24 21 . . 54 . . Projectiles 57 | . . . . . . . 28 5 24 . . . . . . Explosions 259 | . . 60 31 . . . . 93 . 21 . . 54 . . Melee . | . . . . . . . . . . . . . . . . Knockbacks 6 | . . . . . . . . 2 1 1 . . 2 . . Impact . | . . . . . . . . . . . . . . . . Kinetic 5 | . . . . . . . . 2 1 1 . . 1 . . Secondary 1 | . . . . . . . . . . . . . 1 . . Self-Inflicted Damage 463 | . . 108 26 . 74 . . 41 . 59 . 44 70 . 41 Shots 13 | . . 4 1 . 1 . . 1 . 2 . 1 2 . 1 Rammed 7 | . . . . . 7 . . . . . . . . . . Targets Rammed 8 | . . . . . 7 . . . . . . . 1 . . Kicked . | . . . . . . . . . . . . . . . . Crushed 1 | . . . . . . . . . . . . . 1 . . Highest Temperature 477 | . 126 373 144 40 36 200 477 224 283 265 86 267 335 . 6 Average Temperature 94 | . 43 148 38 26 18 120 129 50 96 89 46 77 83 . 4 Received Heat Transfer 2692 | . 108 228 57 . 18 27 219 180 246 27 . 192 1390 . . Effects 16 | . . 7 . . . 2 3 . . . . . 4 . . Energy Bleed 4 | . . 2 . . . . 1 . . . . . 1 . . Interference 11 | . . 4 . . . 2 2 . . . . . 3 . . Damage (minor) 1 | . . 1 . . . . . . . . . . . . . Siege Activations . | . . . . . . . . . . . . . . . . Robots Corrupted 1 | . . . 1 . . . . . . . . . . . . Combat Hostiles 1 | . . . 1 . . . . . . . . . . . . Parts Fried 6 | . . . 3 . . . . 1 . . . 2 . . . Impact Corruptions . | . . . . . . . . . . . . . . . . Robots Melted 5 | . . . . . . . . . . . . . 5 . . Combat Hostiles 5 | . . . . . . . . . . . . . 5 . . Parts Melted 39 | . . 1 . . . . . 1 1 . . 4 27 . 5 Heat Transferred 14875 | . 333 1147 599 55 260 466 1599 2155 957 . . 666 5713 . 925 Parts Sabotaged . | . . . . . . . . . . . . . . . . Parts Stolen . | . . . . . . . . . . . . . . . . Parts Stripped . | . . . . . . . . . . . . . . . . Power Chain Reactions 1 | . . . . . . . . . . . . . 1 . . Missiles Intercepted . | . . . . . . . . . . . . . . . . Alert | -11 -10 -10 -9 -9 -9 -8 -8 -7 -7 -7 -7 -6 -6 -6 -6 ------- Run | Scr Mat Min Mat Min Exi Min Mat Fac Low Low Zio Pro Fac Was Fac Peak Influence 772 | . 115 254 506 153 . 170 301 772 . . . . 647 210 166 Initial 210 | . . 44 12 148 . . 66 51 . . . . 112 210 147 Average 248 | . 44 146 236 150 . 101 176 332 . . . . 394 210 156 Maximum Alert Level 3 | . . 1 2 . . . 1 3 . . . . 2 1 . Low Security (%) 51 | 100 100 65 46 100 . 100 62 48 . . . . 6 . 100 Level 1 24 | . . 34 39 . . . 37 6 . . . . 39 100 . Level 2 21 | . . . 14 . . . . 39 . . . . 53 . . Level 3 1 | . . . . . . . . 5 . . . . . . . Level 4 . | . . . . . . . . . . . . . . . . Level 5 . | . . . . . . . . . . . . . . . . High Security . | . . . . . . . . . . . . . . . . Max Security . | . . . . . . . . . . . . . . . . Squads Dispatched 27 | . 2 . 2 . . . 2 9 . . . . 12 . . Investigation 5 | . . . . . . . . 1 . . . . 4 . . Extermination 2 | . . . . . . . . 1 . . . . 1 . . Reinforcement 18 | . 2 . 2 . . . 2 6 . . . . 6 . . Assault 2 | . . . . . . . . 1 . . . . 1 . . Garrison . | . . . . . . . . . . . . . . . . Intercept . | . . . . . . . . . . . . . . . . Searches Triggered . | . . . . . . . . . . . . . . . . Construction Impeded 1 | . . . . . . . . . . . . . 1 . . Haulers Reinforced 4 | . . . . . . . . 2 . . . . 2 . . Active Scanning Responses . | . . . . . . . . . . . . . . . . Cargo Convoy Interrupts 1 | . . . . . . . . . . . . . 1 . . Stealth | -11 -10 -10 -9 -9 -9 -8 -8 -7 -7 -7 -7 -6 -6 -6 -6 --------- Run | Scr Mat Min Mat Min Exi Min Mat Fac Low Low Zio Pro Fac Was Fac Distress Signals 11 | . 1 1 3 . . . . 4 . . . . 2 . . Communications Jammed 21 | . . . . . . . . . . . . . 21 . . Distress Signals 18 | . . . . . . . . . . . . . 18 . . Times Spotted 198 | . 6 10 18 . 15 7 14 32 5 11 . 17 57 4 2 Peak Tracking Total 11 | . 2 3 7 . 9 4 4 5 3 7 . 4 11 5 1 Tactical Retreats 9 | . . . 1 . 3 . . . . 2 . . 3 . . Traps | -11 -10 -10 -9 -9 -9 -8 -8 -7 -7 -7 -7 -6 -6 -6 -6 ------- Run | Scr Mat Min Mat Min Exi Min Mat Fac Low Low Zio Pro Fac Was Fac Traps Triggered 7 | . 1 1 . . . . . 1 . . . . 3 . 1 Indirectly . | . . . . . . . . . . . . . . . . Trap Hack Attempts . | . . . . . . . . . . . . . . . . Triggered . | . . . . . . . . . . . . . . . . Disarmed . | . . . . . . . . . . . . . . . . Reprogrammed . | . . . . . . . . . . . . . . . . Reused . | . . . . . . . . . . . . . . . . Traps Extracted . | . . . . . . . . . . . . . . . . Installed . | . . . . . . . . . . . . . . . . Triggered . | . . . . . . . . . . . . . . . . Most Traps Carried 2 | . . . . . . . . . 2 2 2 . . . . Exploded 3 | . . . . . 3 . . . . . . . . . . Machines | -11 -10 -10 -9 -9 -9 -8 -8 -7 -7 -7 -7 -6 -6 -6 -6 ---------- Run | Scr Mat Min Mat Min Exi Min Mat Fac Low Low Zio Pro Fac Was Fac Machines Disabled 26 | . . . 2 . 9 . 1 8 . . . . 4 . 2 Max in Single Turn 7 | . . . 2 . 2 . 1 7 . . . . 1 . 1 Garrison Access 2 | . . . . . . . . 1 . . . . 1 . . Machines Sabotaged . | . . . . . . . . . . . . . . . . Garrisons Compromised . | . . . . . . . . . . . . . . . . Overloaded Fab Kills . | . . . . . . . . . . . . . . . . Hacking | -11 -10 -10 -9 -9 -9 -8 -8 -7 -7 -7 -7 -6 -6 -6 -6 --------- Run | Scr Mat Min Mat Min Exi Min Mat Fac Low Low Zio Pro Fac Was Fac Machines Accessed 20 | . 1 1 1 . 2 . 4 5 . . . . 5 . 1 Terminals 8 | . 1 . 1 . . . 4 2 . . . . . . . Fabricators 6 | . . . . . . . . 2 . . . . 4 . . Repair Stations 1 | . . . . . . . . . . . . . . . 1 Recycling Units . | . . . . . . . . . . . . . . . . Scanalyzers . | . . . . . . . . . . . . . . . . Garrison Access 2 | . . . . . . . . 1 . . . . 1 . . Total Hacks 44 | . 5 1 4 . 2 . 10 12 . . . . 9 . 1 Successful 20 | . 2 1 2 . 2 . 2 5 . . . . 5 . 1 Failed 24 | . 3 . 2 . . . 8 7 . . . . 4 . . Catastrophic 8 | . 1 . . . . . 3 2 . . . . 2 . . Database Lockouts . | . . . . . . . . . . . . . . . . Manual 29 | . 5 . 4 . 1 . 5 2 . . . . 12 . . Terminals 22 | . 5 . 4 . . . 10 3 . . . . . . . Fabricators 13 | . . . . . . . . 6 . . . . 7 . . Repair Stations 1 | . . . . . . . . . . . . . . . 1 Recycling Units . | . . . . . . . . . . . . . . . . Scanalyzers . | . . . . . . . . . . . . . . . . Garrison Access 5 | . . . . . . . . 3 . . . . 2 . . Terminal Hacks 9 | . 2 1 1 . 2 . 2 1 . . . . . . . Record 1 | . . . . . 1 . . . . . . . . . . Part Schematic 2 | . 1 . . . . . . 1 . . . . . . . Open Door 1 | . . 1 . . . . . . . . . . . . . Branch Access Points 3 | . 1 . 1 . . . 1 . . . . . . . . Registered Prototypes 1 | . . . . . . . 1 . . . . . . . . EX-Prototype ID Bank 1 | . . . . . 1 . . . . . . . . . . Fabricator Hacks 6 | . . . . . . . . 2 . . . . 4 . . Load Schematic 2 | . . . . . . . . . . . . . 2 . . Build 4 | . . . . . . . . 2 . . . . 2 . . Repair Station Hacks 1 | . . . . . . . . . . . . . . . 1 Refit 1 | . . . . . . . . . . . . . . . 1 Recycling Unit Hacks . | . . . . . . . . . . . . . . . . Scanalyzer . | . . . . . . . . . . . . . . . . Garrison Access Hacks 2 | . . . . . . . . 1 . . . . 1 . . Seal Access 2 | . . . . . . . . 1 . . . . 1 . . Unauthorized Hacks 2 | . . . 1 . . . . 1 . . . . . . . Terminals 1 | . . . 1 . . . . . . . . . . . . Disrupt 1 | . . . 1 . . . . . . . . . . . . Fabricators 1 | . . . . . . . . 1 . . . . . . . Liberate 1 | . . . . . . . . 1 . . . . . . . Repair Stations . | . . . . . . . . . . . . . . . . Recycling Units . | . . . . . . . . . . . . . . . . Scanalyzers . | . . . . . . . . . . . . . . . . Garrison Access . | . . . . . . . . . . . . . . . . Data Cores Recovered 1 | . . . 1 . . . . . . . . . . . . Used . | . . . . . . . . . . . . . . . . Hacking Detections 15 | . 1 . 1 . . . 4 4 . . . . 5 . . Full Trace Events 3 | . . . . . . . . . . . . . 3 . . Feedback Events . | . . . . . . . . . . . . . . . . Feedback Blocked . | . . . . . . . . . . . . . . . . Robot Schematics Acquired . | . . . . . . . . . . . . . . . . Robots Built 6 | . . . . . . . . 6 . . . . . . . Authchips . | . . . . . . . . . . . . . . . . Time 183 | . . . . . . . . 183 . . . . . . . Total Robot Build Rating 21 | . . . . . . . . 21 . . . . . . . Part Schematics Acquired 11 | . 1 . . . . . . 1 . . . . 9 . . Parts Built 2 | . . . . . . . . . . . . . 2 . . Authchips . | . . . . . . . . . . . . . . . . Time 258 | . . . . . . . . . . . . . 258 . . Total Part Build Rating 12 | . . . . . . . . . . . . . 12 . . Parts Repaired . | . . . . . . . . . . . . . . . . Time . | . . . . . . . . . . . . . . . . Parts Recycled . | . . . . . . . . . . . . . . . . Recycled Matter . | . . . . . . . . . . . . . . . . Retrieved Matter . | . . . . . . . . . . . . . . . . Retrieved Components . | . . . . . . . . . . . . . . . . Parts Scanalyzed . | . . . . . . . . . . . . . . . . Part Schematics Acquired . | . . . . . . . . . . . . . . . . Parts Damaged . | . . . . . . . . . . . . . . . . Bothacking | -11 -10 -10 -9 -9 -9 -8 -8 -7 -7 -7 -7 -6 -6 -6 -6 ------------ Run | Scr Mat Min Mat Min Exi Min Mat Fac Low Low Zio Pro Fac Was Fac Used RIF Installer . | . . . . . . . . . . . . . . . . Robots Hacked 4 | . . . . . 4 . . . . . . . . . . Non-combat 3 | . . . . . 3 . . . . . . . . . . Combat 1 | . . . . . 1 . . . . . . . . . . Robot Hacks Applied 4 | . . . . . 4 . . . . . . . . . . parse_system 4 | . . . . . 4 . . . . . . . . . . Relay Couplers Released 3 | . . . . . . . . 3 . . . . . . . Programmers 3 | . . . . . . . . 3 . . . . . . . Fabnet Peak Effective % . | . . . . . . . . . . . . . . . . Robots Rewired . | . . . . . . . . . . . . . . . . Allies Hacked 3 | . . . . . . . . 3 . . . . . . . Hacks Repelled . | . . . . . . . . . . . . . . . . Allies | -11 -10 -10 -9 -9 -9 -8 -8 -7 -7 -7 -7 -6 -6 -6 -6 -------- Run | Scr Mat Min Mat Min Exi Min Mat Fac Low Low Zio Pro Fac Was Fac Total Allies 20 | . . . . . . . . 6 . . 7 . 7 . . Largest Group 7 | . . . . . . . . 5 . . 7 7 5 . . Highest-Rated Group 224 | . . . . . . . . 88 . . 224 224 210 . . Highest-Rated Ally 70 | . . . . . . . . 20 . . 40 40 70 . . Zionite Dispatches 2 | . . . . . . . . . . . . . 2 . . Light 1 | . . . . . . . . . . . . . 1 . . Fire 1 | . . . . . . . . . . . . . 1 . . Total Orders . | . . . . . . . . . . . . . . . . Ally Attacks 149 | . . . . . . . . 28 . . . 68 53 . . Total Damage 2886 | . . . . . . . . 560 . . . 1378 948 . . Kills 25 | . . . . . . . . 8 . . . 7 10 . . Allies Corrupted . | . . . . . . . . . . . . . . . . Allies Melted . | . . . . . . . . . . . . . . . . Intel | -11 -10 -10 -9 -9 -9 -8 -8 -7 -7 -7 -7 -6 -6 -6 -6 ------- Run | Scr Mat Min Mat Min Exi Min Mat Fac Low Low Zio Pro Fac Was Fac Robot Analysis Total . | . . . . . . . . . . . . . . . . Derelict Logs Recovered 3 | . . 1 . . . . . . . . 1 1 . . . Drone Launches . | . . . . . . . . . . . . . . . . Drone Recoveries . | . . . . . . . . . . . . . . . . Zionite Intel Received 1 | . . . . . . . . . . . . . 1 . . Prototype Schematics 1 | . . . . . . . . . . . . . 1 . . Exploration | -11 -10 -10 -9 -9 -9 -8 -8 -7 -7 -7 -7 -6 -6 -6 -6 ------------- Run | Scr Mat Min Mat Min Exi Min Mat Fac Low Low Zio Pro Fac Was Fac Turns Passed 13615 | 2 283 906 614 254 2466 389 833 1364 878 647 2176 1138 1420 41 204 Spaces Moved 6872 | 1 120 231 251 153 1338 259 392 639 478 362 1295 439 639 75 200 Core 276 | . . . . . . . . . . . . . 81 75 120 Treads 5344 | . . . 251 153 975 . 195 639 478 362 1295 439 557 . . Legs 1171 | 1 120 231 . . 363 259 197 . . . . . . . . Wheels 1 | . . . . . . . . . . . . . 1 . . Hover 80 | . . . . . . . . . . . . . . . 80 Flight . | . . . . . . . . . . . . . . . . Fastest Speed 50 | 120 120 190 160 160 120 133 130 166 166 163 166 166 50 50 50 Average Speed 163 | 120 180 190 160 160 154 133 166 166 166 164 166 241 157 50 70 Slowest Speed 1050 | 120 190 190 160 160 240 133 245 166 166 166 166 246 1050 50 100 Overloaded Moves . | . . . . . . . . . . . . . . . . Propulsion Burnouts . | . . . . . . . . . . . . . . . . Robots Hopped . | . . . . . . . . . . . . . . . . Cave-ins Triggered . | . . . . . . . . . . . . . . . . Exploration Rate (%) 44 | 2 35 50 32 18 90 73 38 22 55 55 89 63 25 63 6 Regions Visited 15 Branch Regions 8 Pre-discovered Areas 1 | . . . . . 1 . . . . . . . . . . Known Exits Taken 3 | . 1 1 1 . . . . . . . . . . . . Unknown Exits Taken 10 | 1 . . . 1 1 1 1 1 1 1 1 1 . . . Scrap Searched 12 | . . 2 . . . . . . 3 1 2 4 . . . Spaces Dug 13 | . . . 5 . . . . . . 2 . 3 3 . . Terrain Destroyed 353 | . . 35 63 . 18 1 42 43 6 83 . 39 19 . 4 Melee . | . . . . . . . . . . . . . . . . Projectile 34 | . . . . . . 1 9 1 6 5 . 3 9 . . AOE 319 | . . 35 63 . 18 . 33 42 . 78 . 36 10 . 4 Terrain Rammed . | . . . . . . . . . . . . . . . . Walls Destroyed . | . . . . . . . . . . . . . . . . Machines Disabled . | . . . . . . . . . . . . . . . . Actions | -11 -10 -10 -9 -9 -9 -8 -8 -7 -7 -7 -7 -6 -6 -6 -6 --------- Run | Scr Mat Min Mat Min Exi Min Mat Fac Low Low Zio Pro Fac Was Fac Total 8457 | 2 155 643 417 157 1572 280 517 835 512 388 1323 488 860 78 230 Wait 700 | . 8 362 103 . 56 7 38 84 1 . . 10 25 . 6 Move 6858 | . 119 230 250 152 1337 258 391 638 477 361 1294 438 639 74 200 Hop . | . . . . . . . . . . . . . . . . Pick Up 107 | . 5 7 10 1 23 1 19 7 4 1 7 8 13 1 . Fast Attach 58 | . 3 . 3 . 7 . 6 12 . 1 6 . 15 1 4 Attach 57 | . . 4 3 . 16 1 7 3 2 1 1 . 18 . 1 Detach 8 | . 1 1 . . 1 . . 2 . . . . 2 1 . Swap 55 | . 1 6 5 . 4 2 5 8 . 3 3 7 11 . . Drop 117 | 2 1 . 11 1 15 . 19 19 2 3 12 5 25 1 1 Fire 483 | . 17 33 32 3 101 11 32 62 26 18 . 20 110 . 18 Melee 6 | . . . . . 5 . . . . . . . 1 . . Ram . | . . . . . . . . . . . . . . . . Kick . | . . . . . . . . . . . . . . . . Crush 8 | . . . . . 7 . . . . . . . 1 . . Escape Stasis . | . . . . . . . . . . . . . . . . Rewire . | . . . . . . . . . . . . . . . . Trap . | . . . . . . . . . . . . . . . . Miscellaneous . | . . . . . . . . . . . . . . . . Route ------- -11/Scrapyard -10/Materials -10/Mines (discovered 2 exits: *Mat x2) -9/Materials (discovered 2 exits: *Mat / *Min) -9/Mines (discovered 2 exits: *Mat / *Exi) -9/Exiles -8/Mines -8/Materials -7/Factory (discovered 2 exits: [*Sto] / [*Low]) -7/Lower Caves -7/Lower Caves -7/Zion -6/Proximity Caves -6/Factory -6/Waste -6/Factory History --------- Turn | Location | Event 3 | -11/Scrapyard | Discovered new exit (range 0) 3 | -11/Scrapyard | Entered Materials 229 | -10/Materials | Identified exit to Mines 286 | -10/Materials | Entered Mines 313 | -10/Mines | Build established: Mutant 382 | -10/Mines | Met a Derelict who couldn't figure out how to use a Trap Extractor 773 | -10/Mines | Excavation squad dispatched 773 | -10/Mines | A large section of the Mines collapsed 999 | -10/Mines | Discovered new exit (range 11) 1017 | -10/Mines | Core integrity fell below 50% 1113 | -10/Mines | Identified exit to Materials 1127 | -10/Mines | Received a Rocket Launcher from a helpful Derelict 1192 | -10/Mines | Entered Materials 1192 | -9/Materials | Evolved 2 slots: Propulsion x1, Utility x1 1490 | -9/Materials | Identified exit to Mines 1569 | -9/Materials | Discovered new exit (range 16) 1806 | -9/Materials | Entered Mines 1862 | -9/Mines | Discovered new exit (range 7) 1986 | -9/Mines | Deemed a non-threat by the Exiles lab entrance 1988 | -9/Mines | Discovered new exit (range 5) 2060 | -9/Mines | Entered Exiles 2097 | -9/Exiles | Met 8R-AWN 2128 | -9/Exiles | Met EX-HEX 2172 | -9/Exiles | Met EX-BIN 2264 | -9/Exiles | Aligned with FarCom system 2265 | -9/Exiles | Given EX-Vault access code 2304 | -9/Exiles | Opened EX-Vault 2352 | -9/Exiles | Warned to stay clear of 0b10 Research branches 2532 | -9/Exiles | Met EX-DEC 2568 | -9/Exiles | Learned location of Zion (-7) 3101 | -9/Exiles | Found YOLO Cannon 3609 | -9/Exiles | Attacked by the Exiles 3836 | -9/Exiles | Lost 10 parts (1p4n3u2w) 3893 | -9/Exiles | Destroyed 8R-AWN 3905 | -9/Exiles | Found Exp. Targeting Computer 3908 | -9/Exiles | Found 8R-AWN's Boregun 3911 | -9/Exiles | Found 8R-AWN's Boregun 3921 | -9/Exiles | Lost 4 parts (2n2w) 3936 | -9/Exiles | Found 8R-AWN's Armor/EX 4157 | -9/Exiles | Destroyed EX-DEC 4185 | -9/Exiles | Destroyed EX-HEX 4208 | -9/Exiles | Found Exp. Core Analyzer 4235 | -9/Exiles | Destroyed EX-BIN 4265 | -9/Exiles | Found System Purifier 4467 | -9/Exiles | Build established: Scavenger-Mutant 4511 | -9/Exiles | Discovered new exit (range 10) 4526 | -9/Exiles | Entered Mines 4550 | -8/Mines | Core integrity fell below 50% 4909 | -8/Mines | Discovered new exit (range 6) 4915 | -8/Mines | Entered Materials 4915 | -8/Materials | Evolved 2 slots: Utility x2 5174 | -8/Materials | Discovered new exit (range 15) 5202 | -8/Materials | Lost 3 parts (2n1u) 5748 | -8/Materials | Entered Factory 5748 | -7/Factory | Evolved 2 slots: Utility x2 6361 | -7/Factory | Fabricated B-48 Gladiator (x3) 6479 | -7/Factory | Discovered new exit (range 16) 6717 | -7/Factory | Fabricated G-47 Trooper? 6782 | -7/Factory | Discovered new exit (range 13) 6868 | -7/Factory | P-60 Hacker assimilated allied Trooper 4a 6948 | -7/Factory | First assault squad dispatched 7112 | -7/Factory | Entered Lower Caves 7272 | -7/Lower Caves | Spotted B-75 Beast 7298 | -7/Lower Caves | Destroyed B-75 Beast 7708 | -7/Lower Caves | Discovered new exit (range 16) 7990 | -7/Lower Caves | Entered another Lower Caves area 8360 | -7/Lower Caves | Discovered new exit (range 15) 8637 | -7/Lower Caves | Entered Zion 8707 | -7/Zion | System corruption cleaned by Quarantine Array 8746 | -7/Zion | Gained Derelict followers 8848 | -7/Zion | Discovered new exit (range 12) 9265 | -7/Zion | Learned Factory machine intel 9911 | -7/Zion | Given the Hacking Drone Bay 9918 | -7/Zion | Found Prototype Device 10024 | -7/Zion | Found Unknown Piercing Weapon 10064 | -7/Zion | Received a hallucinogenic algorithm 10189 | -7/Zion | Found Prototype Processor 10189 | -7/Zion | Identified Exp. Melee Analysis Suite 10193 | -7/Zion | Found Prototype Processor 10193 | -7/Zion | Identified Exp. Terrain Scan Processor 10200 | -7/Zion | Found Prototype Processor 10200 | -7/Zion | Identified Spectral Analyzer 10203 | -7/Zion | Found Prototype Processor 10203 | -7/Zion | Identified Exp. Target Analyzer 10206 | -7/Zion | Found Exp. Terrain Scan Processor 10215 | -7/Zion | Found Prototype Hackware 10268 | -7/Zion | Found GAL Module 10451 | -7/Zion | Imprinted 10453 | -7/Zion | Declared Zion's savior 10763 | -7/Zion | Visited the Megawrench Repair Shop 10763 | -7/Zion | Megawrench repaired 10 parts 10813 | -7/Zion | Entered Proximity Caves 10813 | -6/Proximity Caves | Accompanied by 7 allies 10813 | -6/Proximity Caves | Spotted B-75 Beast 10838 | -6/Proximity Caves | Destroyed B-75 Beast 10916 | -6/Proximity Caves | Learned Factory non-interactive machine intel 11149 | -6/Proximity Caves | Build established: Mutant 11915 | -6/Proximity Caves | Discovered new exit (range 13) 11951 | -6/Proximity Caves | Entered Factory 11951 | -6/Factory | Accompanied by 1 ally 11951 | -6/Factory | Evolved 2 slots: Propulsion x1, Utility x1 11952 | -6/Factory | Loaded intel: 249 machine locations 11953 | -6/Factory | Loaded intel: 198 non-interactive machine locations 12072 | -6/Factory | Zion Light squad teleported in 12179 | -6/Factory | Zion Fire squad teleported in 12260 | -6/Factory | Build established: Scavenger-Skirmisher 12402 | -6/Factory | Fabricated Arm. Medium Treads (x2) 12771 | -6/Factory | Discovered new exit (range 17) 12781 | -6/Factory | Retrieved Zion intel report: Prototype Schematics 12830 | -6/Factory | Build established: Scavenger-Mutant 12906 | -6/Factory | Identified exit to Factory 13167 | -6/Factory | Cargo convoy interrupted 13195 | -6/Factory | Terminal network hard line cut 13250 | -6/Factory | Core integrity fell below 50% 13318 | -6/Factory | Core integrity fell below 20% 13322 | -6/Factory | Identified CR-A16's Pointy Stick 13326 | -6/Factory | Released all parts (6) 13343 | -6/Factory | Identified Exp. Hacking Suite 13350 | -6/Factory | Lost 20 parts (2p7n4u7w) 13351 | -6/Factory | First assault squad dispatched 13371 | -6/Factory | Sucked down chute 13371 | -6/Factory | Entered Waste 13376 | -6/Waste | Spotted C-40 Crusher 13376 | -6/Waste | Spotted C-40 Crusher 13377 | -6/Waste | Spotted C-40 Crusher 13377 | -6/Waste | Found Prototype Launcher 13377 | -6/Waste | Identified Mni. Smartbomb Launcher 13393 | -6/Waste | Spotted C-40 Crusher 13396 | -6/Waste | Spotted C-40 Crusher 13402 | -6/Waste | Spotted C-40 Crusher 13405 | -6/Waste | Discovered new exit (range 10) 13410 | -6/Waste | Identified exit to Factory 13412 | -6/Waste | Entered Factory 13595 | -6/Factory | Build established: Mutant 13616 | -6/Factory | Destroyed self with Mini Smartbomb Launcher Last Messages --------------- 13557_ R-10 Processor collects Med. Storage Unit. 13561_ K-01 Serf collects debris. 13566_ ALERT: All DSF locations entering lockdown mode. 13569_ K-01 Serf collects debris. 13574_ Backup Power I destroyed. 13574_ Dropped Backup Laser I. 13575_ K-01 Serf collects debris. 13579_ R-10 Processor collects Backup Laser I. 13583_ K-01 Serf collects debris. 13588_ J3HY9RILLVV&YWX6O1Q2U#SNP FTKF52ZU#SI5Z 13601_ Triggered Blade Trap. 13601_ Massive razor-sharp blades shoot up from within the floor. 13601_ Med. Treads severed. 13601_ Backup Laser I severed. 13601_ Backup Laser I disintegrated. 13607_ Acquired Enh. Optical Array. 13610_ Detecting system override signal. 13614_ Assembly Bed disabled. 13616_ Nuclear Reactor explodes. 13616_ P-60 Hacker destroyed. Map ----- +----------------------------------------------------+ | ?????????????????????????????????????????????????? | | ?????????????????????????????????????????????????? | | ?????????????????????????????????????????????????? | | ?????????????????????????????????????????????????? | | ?????????????????????????????????????????????????? | | ?????????????????????????????????????????????????? | | ?????????????????????????????????????????????????? | | ?????????????????????????????????????????????????? | | ?????????????????????????????????????????????????? | | ?????????????????????????????????????????????????? | | ?????????????????????????????????????????????????? | | ?????????????????????????????????????????????????? | | ?????????????????????????????????????????????????? | | ??????????????????????Y??????????????????????????? | | ?????????????????????????????????????????????????? | | ?????????????????????????????????????????????????? | | ?????????????????????????????????????????????????? | | ?????????????????????????????????????????????????? | | ?????????????????????????????????????????????????? | | ?????????????????????????????????????????????????? | | ?????????????????????????????????????????????????? | | ?????????????????????????????????????????????????? | | ?????????????????????????????????????????????????? | | ?????????????????##############??????????????????? | | ?????????????????# #??????????????????? | | ?????????????????# @ #??????????????????? | | ?????????????????# #??????????????????? | | ?????????????????# ! = #??????????????????? | | ?????????????????# "" % #??????????????????? | | ?????????????????# "" #??????????????????? | | ?????????????????# "" #??????????????????? | | ?????????????????# """ #??????????????????? | | ?????????????????# " " #??????????????????? | | ?????????????????# " #??????????????????? | | ?????????????????# #??????????????????? | | ?????????????????# ]#??????????????????? | | ???????????????###### #####??????????????????? | | ???????????????# = #????????????????????? | | ???????????????# #????????????????????? | | ???????????????# #????????????????????? | | ???????????????# """"""" #????????????????????? | | ???????????????# """"""" #????????????????????? | | ???????????????# """"""" #????????????????????? | | ???????????????# """"""" #????????????????????? | | ???????????????# #????????????????????? | | ???????????????# """"""" #????????????????????? | | ???????????????# """"""" #????????????????????? | | ???????????????# """"""" #????????????????????? | | ???????######### """"""" #????????????????????? | | ?????#?? [ # #????????????????????? | +----------------------------------------------------+ Best States ------------- Heat Dissipation 60 Energy Generation 19 Energy Capacity 310 Matter Stores 300 Matter Capacity 300 Sight Range 22 Robot Scan Range 16 Terrain Scan Range 20 Terrain Scan Density 1010 Jamming Range 16 Armor Coverage 600 Resistance: KI 30 Core Shielding 20 Evasion (%) 55 Targeting Accuracy 12 Melee Accuracy 12 Target Analysis 10 Core Analysis 8 Armor Integrity Analysis 40 Recoil Reduction 4 Offensive Hacking 16 Item Schematics ----------------- Huge Storage Unit | -10/Materials | Hacked Arm. Medium Treads | -7/Factory | Hacked Biomechanical Wings | -6/Factory | Z-intel Hvy. EM Shotgun | -6/Factory | Z-intel Cld. Deuterium Engine | -6/Factory | Z-intel Imp. Heavy Machine Gun | -6/Factory | Z-intel Gravity Neutralizer | -6/Factory | Z-intel Mni. Assault Cannon | -6/Factory | Z-intel Imp. Heavy Laser | -6/Factory | Z-intel Imp. Cesium-ion Thruster | -6/Factory | Z-intel Exp. Propulsion Shielding | -6/Factory | Z-intel Robot Schematics ------------------ None Fabricated ------------ B-48 Gladiator | x3 | -7/Factory | Preloaded G-47 Trooper | x3 | -7/Factory | Preloaded Arm. Medium Treads | x2 | -6/Factory Alien Tech Used ----------------- None Achievements -------------- None Challenges ------------ None Game ------ Seed IntegratedTerrainCleaver Manual? 0 Play Time 01:31:18 Cumulative 360.6 hours Start 2022.05.26 @ 19:25:34 End 2022.05.26 @ 23:54:07 Sessions 5 Manual Loads 0 Difficulty Rogue Special Mode None Game No. 390 Rogue 390 Adventurer 0 Explorer 0 Win Type - Total 29 Types 18/3/2/1/2/0/3/0/0 Lore% 89 Gallery% 88 Achievement% 80 Wizard Run 0 Options --------- ASCII 0 Keyboard 0 Movement Arrows Keybinds 0 Fullscreen 2 Font 18/SmallcapsGlow Map View 76x50 Tactical HUD 1 Map Filters NONE Filters NONE Steam 1 RUN: f66ce4f5-2843-4e7f-981e-7049c088ee91